[Event "German Bundesliga 2024-25"]
[Site "Germany"]
[Date "2024.09.29"]
[Round "2.1"]
[White "Beerdsen, Thomas"]
[Black "Warmerdam, Max"]
[Result "1/2-1/2"]
[ECO "B93"]
[WhiteElo "2509"]
[BlackElo "2679"]
[Annotator "RC"]
[PlyCount "74"]
[EventDate "2024.09.27"]
[EventType "team-tourn"]
[EventCountry "GER"]
[SourceTitle "playchess.com"]
[Source "ChessBase"]
[SourceQuality "1"]
[WhiteTeam "SV Muelheim Nord"]
[BlackTeam "SG Solingen"]
[TimeControl "40/5400+30:1800+30"]

1. e4 {[%emt 0:00:04]} c5 {[%emt 0:00:06]} 2. Nf3 {[%emt 0:00:05]} d6 {[%emt 0:00:05]} 3. d4 {[%emt 0:00:06]} cxd4 {[%emt 0:00:05]} 4. Nxd4 {[%emt 0:00:05]} Nf6 {[%emt 0:00:06]} 5. Nc3 {[%emt 0:00:06]} a6 {[%emt 0:00:57]} 6. f4 {[%emt 0:00:06]} e5 {[%emt 0:00:11]} 7. Nf5 {[%emt 0:00:05]} Nc6 {[%emt 0:09:37]} 8. Bc4 {[%emt 0:00:26]} Be6 {[%emt 0:02:33]} 9. Bb3 {[%emt 0:00:06]} g6 {[%emt 0:13:59]} 10. fxe5 {[%emt 0:00:30]} Nxe5 {[%emt 0:01:10]} 11. Nd4 {[%emt 0:01:27]} Bxb3 {[%emt 0:06:29]} 12. axb3 {[%emt 0:03:28]} Bg7 {[%emt 0:00:17]} 13. Bg5 {[%emt 0:02:56]} h6 {[%emt 0:02:04]} 14. Bh4 {[%emt 0:00:17]} O-O {[%emt 0:12:56]} 15. O-O {[%emt 0:01:24]} Ned7 {[%emt 0:00:03]} 16. Qf3 {[%emt 0:21:30]} Qc7 {[%emt 0:03:19]} 17. Kh1 {[%emt 0:04:08]} Rae8 {[%emt 0:00:56]} 18. Rad1 {[%emt 0:01:55]} b5 {[%emt 0:04:47]} 19. Bg3 {[%emt 0:15:41]} b4 {[%emt 0:04:17]} 20. Nd5 {[%emt 0:01:01]} Qc5 {[%emt 0:04:14]} 21. Nxf6+ {[%emt 0:05:25]} Nxf6 {[%emt 0:00:17]} 22. Rfe1 {[%emt 0:01:17]} d5 {[%emt 0:01:09]} 23. exd5 {[%emt 0:01:23]} Nxd5 {[%emt 0:00:57]} 24. Rxe8 {[%emt 0:05:12]} Rxe8 {[%emt 0:00:09]} 25. Bf2 {[%emt 0:00:22]} Nf6 {[%emt 0:09:42]} 26. Bg1 {[%emt 0:11:57]} Qc8 {[%emt 0:04:36]} 27. Nc6 {[%emt 0:03:29]} Qb7 {[%emt 0:01:52]} 28. Rd4 {[%emt 0:00:54]} Re1 {[%emt 0:07:22]} 29. Rxb4 {[%emt 0:09:59]} Qd7 {[%emt 0:00:34]} 30. Nd4 {[%emt 0:05:59]} Rb1 {[%emt 0:03:38]} 31. Ra4 {[%emt 0:02:04]} Qe7 {[%emt 0:02:11]} 32. Rxa6 {[%emt 0:01:46]} Rxg1+ {[%emt 0:05:00]} 33. Kxg1 {[%emt 0:00:05]} Qe1+ {[%emt 0:00:03]} 34. Qf1 {[%emt 0:00:05]} Qe3+ {[%emt 0:00:03]} 35. Qf2 {[%emt 0:00:24]} Qc1+ {[%emt 0:00:05]} 36. Qf1 {[%emt 0:00:04]} Qe3+ {[%emt 0:00:04]} 37. Qf2 {[%emt 0:00:09]} Qc1+ {[%emt 0:00:11]} 1/2-1/2

[Event "German Bundesliga 2024-25"]
[Site "Germany"]
[Date "2024.09.29"]
[Round "2.2"]
[White "Harikrishna, Pentala"]
[Black "Buckels, Valentin"]
[Result "1-0"]
[ECO "A13"]
[WhiteElo "2686"]
[BlackElo "2448"]
[Annotator "TA"]
[PlyCount "67"]
[EventDate "2024.09.27"]
[EventType "team-tourn"]
[EventCountry "GER"]
[SourceTitle "playchess.com"]
[Source "ChessBase"]
[SourceQuality "1"]
[WhiteTeam "SG Solingen"]
[BlackTeam "SV Muelheim Nord"]
[TimeControl "40/5400+30:1800+30"]

{[%evp 9,67,4,21,20,108,93,85,75,89,79,104,88,102,108,108,69,100,88,112,95,86,90,77,78,97,73,125,134,183,172,180,195,187,181,182,187,188,172,195,184,190,184,220,192,187,179,213,206,258,254,251,235,329,320,460,443,501,469,479,488]} 1. c4 {[%emt 0:00:06]} e6 {[%emt 0:00:08]} 2. Nf3 {[%emt 0:00:10]} d5 {[%emt 0:00:10]} 3. g3 {[%emt 0:00:29]} d4 {[%emt 0:03:24]} 4. Bg2 {[%emt 0:01:26]} c5 {[%emt 0:00:36]} 5. e3 {[%emt 0:01:47]} Ne7 {[%emt 0:08:49]} 6. exd4 {[%emt 0:04:37]} Nf5 {[%emt 0:07:05]} (6... cxd4 $11 {keeps the balance.} 7. b4 Nf5) 7. dxc5 $16 {[%emt 0:04:58]} Nc6 {[%emt 0:09:28][%cal Od8d3] Against d4} 8. O-O {[%emt 0:10:22][%cal Od2d4] d4! would now be deadly. White is better.} Bxc5 {[%emt 0:09:56]} 9. b3 {[%emt 0:03:30]} e5 {[%emt 0:04:42]} 10. Ba3 {[%emt 0:04:19]} Bxa3 {[%emt 0:03:09]} 11. Nxa3 {[%emt 0:00:06]} O-O {[%emt 0:00:14]} 12. d3 {[%emt 0:02:28]} Qa5 {[%emt 0:12:33]} 13. Nc2 {[%emt 0:01:55]} Rd8 {[%emt 0:00:50]} 14. Qe1 {[%emt 0:07:23]} Qxe1 {[%emt 0:08:56]} 15. Rfxe1 {[%emt 0:01:26]} f6 {[%emt 0:00:23]} 16. Rad1 {[%emt 0:02:11][%cal Od3d4]} g5 {[%emt 0:01:04]} 17. Ne3 {[%emt 0:21:36]} Nb4 {[%emt 0:18:08]} (17... Kf7 $142) 18. d4 {[%emt 0:10:51]} Nxe3 {[%emt 0:02:39]} (18... Nxd4 $16 19. Nxd4 Rxd4) 19. fxe3 $18 {[%emt 0:04:45]} ({Don't play} 19. Rxe3 $6 g4 20. Ne1 Rxd4 21. Rxd4 exd4 $16) 19... e4 {[%emt 0:00:40]} 20. Nd2 {[%emt 0:00:06][%cal Bf3d2,Bd2e4,Be4d6][%mdl 32]} Nc2 {[%emt 0:01:53] [#]} 21. Nxe4 $1 {[%emt 0:00:39]} Nxe1 {[%emt 0:00:05]} 22. Rxe1 {[%emt 0:00:04]} Kg7 {[%emt 0:00:20]} 23. Rf1 {[%emt 0:03:23]} Rf8 {[%emt 0:02:49]} 24. Nd6 {[%emt 0:01:29]} Rb8 {[%emt 0:00:42]} 25. c5 {[%emt 0:01:06]} Rd8 {[%emt 0:00:53]} 26. Rc1 {[%emt 0:02:39]} Kf8 {[%emt 0:00:34]} 27. Be4 {[%emt 0:01:57]} h5 {[%emt 0:01:09]} 28. b4 {[%emt 0:00:09]} Ke7 {[%emt 0:00:59]} 29. Nxc8+ {[%emt 0:02:08]} Rdxc8 {[%emt 0:00:04] [#]} 30. Bf5 {[%emt 0:02:55]} Re8 {[%emt 0:01:03]} 31. d5 {[%emt 0:00:53][%cal Bd4d5,Bd5d6][%mdl 32]} Kd8 {[%emt 0:00:45]} (31... a6 $142 32. e4 g4 33. d6+ Kf8) 32. e4 {[%emt 0:00:11] White is clearly winning.} a6 {[%emt 0:01:34]} 33. d6 {[%emt 0:02:33]} Re5 {[%emt 0:00:26]} 34. a4 {[%emt 0:01:03] Weighted Error Value: White=0.06 (flawless) /Black=0.30.  Mistake:       	---       	Black=4      Inaccurate:     	White=1     	Black=2      OK:         	White=12    	Black=11     Best:        	White=2     	Black=1      Strong:       	White=1     	---} 1-0

[Event "German Bundesliga 2024-25"]
[Site "Germany"]
[Date "2024.09.29"]
[Round "2.3"]
[White "Hausrath, Daniel"]
[Black "L'Ami, Erwin"]
[Result "0-1"]
[ECO "A46"]
[WhiteElo "2470"]
[BlackElo "2628"]
[Annotator "RC"]
[PlyCount "74"]
[EventDate "2024.09.27"]
[EventType "team-tourn"]
[EventCountry "GER"]
[SourceTitle "playchess.com"]
[Source "ChessBase"]
[SourceQuality "1"]
[WhiteTeam "SV Muelheim Nord"]
[BlackTeam "SG Solingen"]
[TimeControl "40/5400+30:1800+30"]

1. Nf3 {[%emt 0:00:04]} Nf6 {[%emt 0:00:10]} 2. g3 {[%emt 0:00:52]} e6 {[%emt 0:00:22]} 3. Bg2 {[%emt 0:00:31]} d5 {[%emt 0:00:10]} 4. d4 {[%emt 0:02:42]} b5 {[%emt 0:00:26]} 5. O-O {[%emt 0:12:14]} Be7 {[%emt 0:04:14]} 6. Bg5 {[%emt 0:07:26]} Nbd7 {[%emt 0:04:14]} 7. Ne5 {[%emt 0:13:11]} Bb7 {[%emt 0:15:02]} 8. Qd3 {[%emt 0:02:56]} a6 {[%emt 0:04:55]} 9. Nd2 {[%emt 0:13:49]} Nxe5 {[%emt 0:07:40]} 10. dxe5 {[%emt 0:00:13]} Nd7 {[%emt 0:00:16]} 11. Bxe7 {[%emt 0:00:12]} Qxe7 {[%emt 0:00:06]} 12. f4 {[%emt 0:00:20]} O-O {[%emt 0:01:29]} 13. c3 {[%emt 0:05:45]} Nc5 {[%emt 0:06:13]} 14. Qc2 {[%emt 0:06:03]} Rad8 {[%emt 0:01:52]} 15. Rad1 {[%emt 0:06:27]} Rd7 {[%emt 0:06:59]} 16. e3 {[%emt 0:05:01]} Rfd8 {[%emt 0:07:00]} 17. b4 {[%emt 0:08:07]} Na4 {[%emt 0:02:50]} 18. Nf3 {[%emt 0:00:56]} c5 {[%emt 0:01:57]} 19. g4 {[%emt 0:04:11]} d4 {[%emt 0:06:49]} 20. exd4 {[%emt 0:01:10]} Bxf3 {[%emt 0:03:19]} 21. Bxf3 {[%emt 0:02:31]} cxd4 {[%emt 0:00:46]} 22. Rxd4 {[%emt 0:00:28]} Rxd4 {[%emt 0:03:35]} 23. cxd4 {[%emt 0:00:02]} Qxb4 {[%emt 0:05:52]} 24. Rd1 {[%emt 0:01:40]} Nb2 {[%emt 0:01:03]} 25. Rb1 {[%emt 0:02:39]} Qxd4+ {[%emt 0:01:07]} 26. Qf2 {[%emt 0:00:03]} Nc4 {[%emt 0:02:56]} 27. Qxd4 {[%emt 0:01:37]} Rxd4 {[%emt 0:00:09]} 28. Rd1 {[%emt 0:00:50]} Rxd1+ {[%emt 0:04:57]} 29. Bxd1 {[%emt 0:00:02]} Ne3 {[%emt 0:01:58]} 30. Bf3 {[%emt 0:01:26]} Nd5 {[%emt 0:00:49]} 31. f5 {[%emt 0:01:21]} Nb4 {[%emt 0:01:36]} 32. Bb7 {[%emt 0:00:31]} a5 {[%emt 0:01:13]} 33. fxe6 {[%emt 0:00:27]} fxe6 {[%emt 0:00:41]} 34. Bc8 {[%emt 0:00:41]} Kf7 {[%emt 0:00:10]} 35. Bd7 {[%emt 0:00:08]} Nxa2 {[%emt 0:00:13]} 36. Bxb5 {[%emt 0:00:02]} Nc3 {[%emt 0:00:14]} 37. Bc4 {[%emt 0:00:45]} a4 {[%emt 0:00:09]} 0-1

[Event "German Bundesliga 2024-25"]
[Site "Germany"]
[Date "2024.09.29"]
[Round "2.4"]
[White "Ragger, Markus"]
[Black "Dinstuhl, Volkmar"]
[Result "1-0"]
[ECO "C88"]
[WhiteElo "2601"]
[BlackElo "2384"]
[Annotator "RC"]
[PlyCount "87"]
[EventDate "2024.09.27"]
[EventType "team-tourn"]
[EventCountry "GER"]
[SourceTitle "playchess.com"]
[Source "ChessBase"]
[SourceQuality "1"]
[WhiteTeam "SG Solingen"]
[BlackTeam "SV Muelheim Nord"]
[TimeControl "40/5400+30:1800+30"]

1. e4 {[%emt 0:00:03]} e5 {[%emt 0:00:07]} 2. Nf3 {[%emt 0:00:04]} Nc6 {[%emt 0:00:03]} 3. Bb5 {[%emt 0:00:06]} a6 {[%emt 0:00:07]} 4. Ba4 {[%emt 0:00:01]} Nf6 {[%emt 0:00:15]} 5. O-O {[%emt 0:00:53]} Be7 {[%emt 0:00:05]} 6. Re1 {[%emt 0:00:58]} b5 {[%emt 0:00:17]} 7. Bb3 {[%emt 0:00:01]} d6 {[%emt 0:00:09]} 8. a4 {[%emt 0:00:59]} Rb8 {[%emt 0:10:30]} 9. axb5 {[%emt 0:07:16]} axb5 {[%emt 0:00:18]} 10. c3 {[%emt 0:00:19]} O-O {[%emt 0:18:31]} 11. h3 {[%emt 0:08:50]} Bb7 {[%emt 0:07:12]} 12. d3 {[%emt 0:17:06]} Re8 {[%emt 0:05:29]} 13. Nbd2 {[%emt 0:09:11]} Bf8 {[%emt 0:01:13]} 14. Nf1 {[%emt 0:02:06]} h6 {[%emt 0:11:32]} 15. Nh4 {[%emt 0:03:20]} d5 {[%emt 0:07:47]} 16. Qf3 {[%emt 0:05:25]} Ra8 {[%emt 0:06:06]} 17. Rxa8 {[%emt 0:03:44]} Bxa8 {[%emt 0:00:08]} 18. Nf5 {[%emt 0:01:21]} Na5 {[%emt 0:05:00]} 19. Ba2 {[%emt 0:00:25]} c5 {[%emt 0:01:30]} 20. exd5 {[%emt 0:12:23]} Kh8 {[%emt 0:18:54]} 21. c4 {[%emt 0:01:52]} e4 {[%emt 0:00:18]} 22. dxe4 {[%emt 0:01:13]} Nxc4 {[%emt 0:00:23]} 23. Bxc4 {[%emt 0:00:53]} bxc4 {[%emt 0:00:01]} 24. N1g3 {[%emt 0:00:27]} Bxd5 {[%emt 0:01:48]} 25. Rd1 {[%emt 0:14:00]} Nxe4 {[%emt 0:00:09]} 26. Nxe4 {[%emt 0:04:04]} Qa8 {[%emt 0:00:10]} 27. Ne3 {[%emt 0:01:06]} Bxe4 {[%emt 0:02:48]} 28. Qxf7 {[%emt 0:00:01]} Bd3 {[%emt 0:00:06]} 29. Bd2 {[%emt 0:00:16]} Re7 {[%emt 0:01:15]} 30. Qf4 {[%emt 0:01:14]} Re4 {[%emt 0:00:20]} 31. Qc7 {[%emt 0:01:06]} Qa4 {[%emt 0:01:21]} 32. Re1 {[%emt 0:01:13]} Qe8 {[%emt 0:00:15]} 33. Bc3 {[%emt 0:01:01]} Kg8 {[%emt 0:00:16]} 34. Ra1 {[%emt 0:00:50]} Qf7 {[%emt 0:00:29]} 35. Qg3 {[%emt 0:02:21]} Re8 {[%emt 0:00:29]} 36. Ra6 {[%emt 0:01:10]} Kh7 {[%emt 0:00:05]} 37. Rc6 {[%emt 0:00:25]} Re6 {[%emt 0:00:13]} 38. Rc7 {[%emt 0:00:20]} Re7 {[%emt 0:01:34]} 39. Rxc5 {[%emt 0:00:47]} Ra7 {[%emt 0:00:30]} 40. Rc6 {[%emt 0:00:31]} Ra1+ {[%emt 0:00:48]} 41. Kh2 {[%emt 0:30:01]} Ra7 {[%emt 0:30:17]} 42. Ng4 {[%emt 0:00:00]} Be4 {[%emt 0:00:00]} 43. Rb6 {[%emt 0:00:00]} Be7 {[%emt 0:00:00]} 44. Qe3 {[%emt 0:00:00]} 1-0

[Event "German Bundesliga 2024-25"]
[Site "Germany"]
[Date "2024.09.29"]
[Round "2.5"]
[White "Gungl, Theo"]
[Black "Andersen, Mads"]
[Result "0-1"]
[ECO "D37"]
[WhiteElo "2338"]
[BlackElo "2598"]
[Annotator "RC"]
[PlyCount "100"]
[EventDate "2024.09.27"]
[EventType "team-tourn"]
[EventCountry "GER"]
[SourceTitle "playchess.com"]
[Source "ChessBase"]
[SourceQuality "1"]
[WhiteTeam "SV Muelheim Nord"]
[BlackTeam "SG Solingen"]
[TimeControl "40/5400+30:1800+30"]

1. d4 {[%emt 0:00:02]} Nf6 {[%emt 0:00:10]} 2. c4 {[%emt 0:00:05]} e6 {[%emt 0:00:07]} 3. Nc3 {[%emt 0:00:06]} d5 {[%emt 0:00:06]} 4. Nf3 {[%emt 0:00:07]} h6 {[%emt 0:00:11]} 5. Bf4 {[%emt 0:01:06]} Bd6 {[%emt 0:00:11]} 6. Bxd6 {[%emt 0:00:55]} Qxd6 {[%emt 0:00:08]} 7. e3 {[%emt 0:00:27]} O-O {[%emt 0:00:27]} 8. Be2 {[%emt 0:02:04]} b6 {[%emt 0:08:16]} 9. cxd5 {[%emt 0:01:57]} exd5 {[%emt 0:10:27]} 10. O-O {[%emt 0:00:56]} Bb7 {[%emt 0:06:56]} 11. Rc1 {[%emt 0:00:50]} a6 {[%emt 0:02:51]} 12. Ne5 {[%emt 0:02:15]} Nc6 {[%emt 0:07:41]} 13. f4 {[%emt 0:02:10]} Ne7 {[%emt 0:02:55]} 14. g4 {[%emt 0:10:31]} c5 {[%emt 0:12:53]} 15. h4 {[%emt 0:10:39]} c4 {[%emt 0:09:51]} 16. g5 {[%emt 0:10:52]} Ne8 {[%emt 0:02:14]} 17. Kf2 {[%emt 0:16:47]} b5 {[%emt 0:06:09]} 18. Bf3 {[%emt 0:02:37]} Rd8 {[%emt 0:09:07]} 19. Rh1 {[%emt 0:08:35]} Bc8 {[%emt 0:01:26]} 20. Qd2 {[%emt 0:03:04]} Bf5 {[%emt 0:06:38]} 21. Rcg1 {[%emt 0:03:01]} Kh7 {[%emt 0:00:00]} 22. h5 {[%emt 0:06:28]} Qe6 {[%emt 0:00:00]} 23. Ne2 {[%emt 0:08:18]} Nd6 {[%emt 0:00:16]} 24. Ng3 {[%emt 0:00:39]} hxg5 {[%emt 0:05:59]} 25. fxg5 {[%emt 0:00:31]} f6 {[%emt 0:00:57]} 26. gxf6 {[%emt 0:03:15]} Rxf6 {[%emt 0:00:54]} 27. Ke1 {[%emt 0:01:04]} Nf7 {[%emt 0:02:39]} 28. Nxf7 {[%emt 0:02:57]} Rxf7 {[%emt 0:00:32]} 29. Bd1 {[%emt 0:02:00]} Kh8 {[%emt 0:00:32]} 30. Rh2 {[%emt 0:00:35]} Rdf8 {[%emt 0:01:10]} 31. Rf2 {[%emt 0:00:26]} Bd3 {[%emt 0:01:20]} 32. Rxf7 {[%emt 0:00:08]} Rxf7 {[%emt 0:00:22]} 33. Be2 {[%emt 0:00:29]} Bb1 {[%emt 0:00:55]} 34. a3 {[%emt 0:00:38]} Qh3 {[%emt 0:01:04]} 35. Bf1 {[%emt 0:00:35]} Qh4 {[%emt 0:00:27]} 36. Qg2 {[%emt 0:00:33]} Be4 {[%emt 0:00:39]} 37. Qh3 {[%emt 0:00:06]} Qg5 {[%emt 0:01:37]} 38. Ne2 {[%emt 0:00:31]} Qh6 {[%emt 0:00:48]} 39. Kd2 {[%emt 0:01:03]} Rf3 {[%emt 0:00:16]} 40. Qd7 {[%emt 0:00:32]} Qxe3+ {[%emt 0:00:33]} 41. Ke1 {[%emt 0:03:05]} Qf2+ {[%emt 0:05:38]} 42. Kd2 {[%emt 0:01:36]} Rd3+ {[%emt 0:01:03]} 43. Kc2 {[%emt 0:00:14]} Rxa3+ {[%emt 0:00:57]} 44. Kd1 {[%emt 0:00:36]} Rd3+ {[%emt 0:01:06]} 45. Kc2 {[%emt 0:00:06]} Rc3+ {[%emt 0:00:34]} 46. Kd1 {[%emt 0:00:58]} Rc1+ {[%emt 0:00:37]} 47. Kd2 {[%emt 0:00:56]} c3+ {[%emt 0:00:19]} 48. bxc3 {[%emt 0:00:14]} Qe1+ {[%emt 0:00:09]} 49. Ke3 {[%emt 0:00:05]} Rxc3+ {[%emt 0:00:06]} 50. Kf4 {[%emt 0:00:06]} Qh4+ {[%emt 0:00:18]} 0-1

[Event "German Bundesliga 2024-25"]
[Site "Germany"]
[Date "2024.09.29"]
[Round "2.6"]
[White "Van Wely, Loek"]
[Black "Albers, Sasa"]
[Result "1/2-1/2"]
[ECO "D38"]
[WhiteElo "2618"]
[BlackElo "2264"]
[Annotator "RC"]
[PlyCount "162"]
[EventDate "2024.09.27"]
[EventType "team-tourn"]
[EventCountry "GER"]
[SourceTitle "playchess.com"]
[Source "ChessBase"]
[SourceQuality "1"]
[WhiteTeam "SG Solingen"]
[BlackTeam "SV Muelheim Nord"]
[TimeControl "40/5400+30:1800+30"]

1. c4 {[%emt 0:00:04]} e6 {[%emt 0:00:21]} 2. Nc3 {[%emt 0:00:18]} Nf6 {[%emt 0:00:25]} 3. Nf3 {[%emt 0:00:28]} d5 {[%emt 0:00:10]} 4. d4 {[%emt 0:00:29]} Bb4 {[%emt 0:00:07]} 5. Qa4+ {[%emt 0:00:59]} Nc6 {[%emt 0:00:09]} 6. e3 {[%emt 0:00:23]} O-O {[%emt 0:00:13]} 7. Bd2 {[%emt 0:00:05]} Re8 {[%emt 0:00:35]} 8. Rd1 {[%emt 0:01:26]} h6 {[%emt 0:01:36]} 9. h3 {[%emt 0:03:19]} Bf8 {[%emt 0:13:56]} 10. a3 {[%emt 0:20:39]} a6 {[%emt 0:11:51]} 11. Qc2 {[%emt 0:18:24]} dxc4 {[%emt 0:29:36]} 12. Bxc4 {[%emt 0:00:33]} e5 {[%emt 0:00:29]} 13. d5 {[%emt 0:07:27]} Nb8 {[%emt 0:01:55]} 14. e4 {[%emt 0:00:54]} Nbd7 {[%emt 0:01:06]} 15. g4 {[%emt 0:04:40]} Bd6 {[%emt 0:07:19]} 16. g5 {[%emt 0:13:06]} hxg5 {[%emt 0:00:05]} 17. Bxg5 {[%emt 0:00:56]} Nf8 {[%emt 0:00:06]} 18. Ne2 {[%emt 0:04:22]} N8h7 {[%emt 0:02:03]} 19. Bh4 {[%emt 0:01:27]} Bd7 {[%emt 0:00:38]} 20. Ng3 {[%emt 0:01:52]} Qc8 {[%emt 0:01:09]} 21. Qd2 {[%emt 0:04:38]} b5 {[%emt 0:05:05]} 22. Bb3 {[%emt 0:03:42]} a5 {[%emt 0:03:15]} 23. Rg1 {[%emt 0:01:18]} a4 {[%emt 0:02:02]} 24. Bc2 {[%emt 0:01:00]} Ra6 {[%emt 0:01:31]} 25. Ng5 {[%emt 0:02:47]} Bf8 {[%emt 0:01:46]} 26. Nxh7 {[%emt 0:01:48]} Nxh7 {[%emt 0:01:01]} 27. Nf5 {[%emt 0:00:20]} Rg6 {[%emt 0:03:16]} 28. Ke2 {[%emt 0:00:43]} Qa6 {[%emt 0:02:56]} 29. Qe3 {[%emt 0:01:25]} Nf6 {[%emt 0:01:56]} 30. Qf3 {[%emt 0:01:23]} b4+ {[%emt 0:02:48]} 31. Bd3 {[%emt 0:00:09]} Bb5 {[%emt 0:00:13]} 32. Bxf6 {[%emt 0:02:21]} Rxf6 {[%emt 0:01:20]} 33. h4 {[%emt 0:02:08]} bxa3 {[%emt 0:02:05]} 34. bxa3 {[%emt 0:00:02]} Rb8 {[%emt 0:00:32]} 35. Rg3 {[%emt 0:01:27]} Rfb6 {[%emt 0:01:21]} 36. h5 {[%emt 0:00:35]} Bxd3+ {[%emt 0:02:12]} 37. Qxd3 {[%emt 0:00:28]} Rb2+ {[%emt 0:00:26]} 38. Kf1 {[%emt 0:00:10]} Qf6 {[%emt 0:00:28]} 39. Qe3 {[%emt 0:00:59]} R8b3 {[%emt 0:01:33]} 40. Rd3 {[%emt 0:00:16]} Qa6 {[%emt 0:00:22]} 41. d6 {[%emt 0:16:54]} Rxd3 {[%emt 0:03:12]} 42. Qxd3 {[%emt 0:00:14]} Qxd3+ {[%emt 0:05:35]} 43. Rxd3 {[%emt 0:00:02]} Bxd6 {[%emt 0:04:08]} 44. Rg3 {[%emt 0:03:00]} Bf8 {[%emt 0:03:28]} 45. Nh6+ {[%emt 0:01:31]} Kh7 {[%emt 0:00:05]} 46. Nxf7 {[%emt 0:00:04]} Rb3 {[%emt 0:02:08]} 47. Rg6 {[%emt 0:02:04]} Rxa3 {[%emt 0:10:04]} 48. Ng5+ {[%emt 0:00:38]} Kg8 {[%emt 0:00:55]} 49. Ra6 {[%emt 0:01:11]} Rb3 {[%emt 0:02:37]} 50. Rxa4 {[%emt 0:01:27]} Rb6 {[%emt 0:00:45]} 51. Ra8 {[%emt 0:00:57]} Rh6 {[%emt 0:00:59]} 52. Rc8 {[%emt 0:02:11]} c5 {[%emt 0:01:42]} 53. Ke2 {[%emt 0:00:26]} Rf6 {[%emt 0:00:48]} 54. f3 {[%emt 0:02:17]} Rd6 {[%emt 0:00:29]} 55. Kf2 {[%emt 0:01:31]} Rf6 {[%emt 0:00:32]} 56. Kg3 {[%emt 0:00:22]} Rh6 {[%emt 0:00:09]} 57. f4 {[%emt 0:02:38]} exf4+ {[%emt 0:00:15]} 58. Kxf4 {[%emt 0:00:03]} c4 {[%emt 0:01:06]} 59. e5 {[%emt 0:00:26]} c3 {[%emt 0:00:10]} 60. e6 {[%emt 0:00:57]} c2 {[%emt 0:00:23]} 61. Rxc2 {[%emt 0:00:13]} Bd6+ {[%emt 0:00:17]} 62. Kg4 {[%emt 0:01:30]} Kf8 {[%emt 0:00:02]} 63. Rf2+ {[%emt 0:00:35]} Ke8 {[%emt 0:00:03]} 64. Re2 {[%emt 0:00:49]} Ke7 {[%emt 0:01:57]} 65. Rb2 {[%emt 0:00:34]} g6 {[%emt 0:00:32]} 66. Rb7+ {[%emt 0:00:35]} Kf6 {[%emt 0:00:02]} 67. Rf7+ {[%emt 0:00:34]} Ke5 {[%emt 0:00:03]} 68. hxg6 {[%emt 0:00:28]} Rxg6 {[%emt 0:00:07]} 69. Rf5+ {[%emt 0:00:13]} Kd4 {[%emt 0:00:09]} 70. Kh5 {[%emt 0:00:12]} Rg8 {[%emt 0:00:17]} 71. Nf7 {[%emt 0:00:51]} Be7 {[%emt 0:00:52]} 72. Ra5 {[%emt 0:00:30]} Rg1 {[%emt 0:01:32]} 73. Nh6 {[%emt 0:00:57]} Bb4 {[%emt 0:01:07]} 74. Rb5 {[%emt 0:00:27]} Bc5 {[%emt 0:00:23]} 75. Nf5+ {[%emt 0:00:29]} Kc4 {[%emt 0:00:28]} 76. Rb7 {[%emt 0:00:31]} Re1 {[%emt 0:00:33]} 77. e7 {[%emt 0:00:22]} Kd5 {[%emt 0:00:32]} 78. Kg6 {[%emt 0:00:25]} Kc6 {[%emt 0:00:24]} 79. Rb8 {[%emt 0:00:19]} Bxe7 {[%emt 0:00:15]} 80. Re8 {[%emt 0:00:17]} Rg1+ {[%emt 0:00:04]} 81. Kf7 {[%emt 0:00:04]} Bc5 {[%emt 0:00:13]} 1/2-1/2

[Event "German Bundesliga 2024-25"]
[Site "Germany"]
[Date "2024.09.29"]
[Round "2.7"]
[White "Stillger, Bernhard"]
[Black "Krastev, Alexander"]
[Result "0-1"]
[ECO "A40"]
[WhiteElo "2179"]
[BlackElo "2423"]
[Annotator "ChessBase"]
[PlyCount "104"]
[EventDate "2024.09.27"]
[EventType "team-tourn"]
[EventCountry "GER"]
[SourceTitle "playchess.com"]
[Source "ChessBase"]
[SourceQuality "1"]
[WhiteTeam "SV Muelheim Nord"]
[BlackTeam "SG Solingen"]
[TimeControl "40/5400+30:1800+30"]

1. d4 {[%emt 0:00:07]} e6 {[%emt 0:00:49]} 2. c4 {[%emt 0:00:22]} b6 {[%emt 0:00:18]} 3. e4 {[%emt 0:00:57]} Bb7 {[%emt 0:00:06]} 4. Bd3 {[%emt 0:00:11]} Nc6 {[%emt 0:00:05]} 5. Ne2 {[%emt 0:01:02]} Nb4 {[%emt 0:00:16]} 6. O-O {[%emt 0:00:13]} Ne7 {[%emt 0:51:49]} 7. Nbc3 {[%emt 0:00:30]} Nxd3 {[%emt 0:00:03]} 8. Qxd3 {[%emt 0:00:06]} Nc6 {[%emt 0:00:10]} 9. Be3 {[%emt 0:14:57]} Be7 {[%emt 0:01:12]} 10. f4 {[%emt 0:05:18]} O-O {[%emt 0:00:54]} 11. a3 {[%emt 0:04:03]} a5 {[%emt 0:10:31]} 12. Rad1 {[%emt 0:06:13]} a4 {[%emt 0:02:21]} 13. d5 {[%emt 0:06:55]} Na5 {[%emt 0:01:28]} 14. Nxa4 {[%emt 0:03:02]} Nxc4 {[%emt 0:04:57]} 15. Qxc4 {[%emt 0:01:00]} Ba6 {[%emt 0:00:05]} 16. Qc2 {[%emt 0:00:12]} Bxe2 {[%emt 0:00:06]} 17. Qxe2 {[%emt 0:00:06]} Rxa4 {[%emt 0:00:04]} 18. Qc2 {[%emt 0:14:34]} Ra5 {[%emt 0:19:32]} 19. dxe6 {[%emt 0:09:23]} fxe6 {[%emt 0:00:01]} 20. Qd3 {[%emt 0:02:05]} d5 {[%emt 0:00:51]} 21. f5 {[%emt 0:09:02]} exf5 {[%emt 0:00:37]} 22. exd5 {[%emt 0:02:35]} Qd7 {[%emt 0:00:22]} 23. Bf4 {[%emt 0:04:37]} Rd8 {[%emt 0:01:36]} 24. Qe2 {[%emt 0:03:19]} Kf8 {[%emt 0:02:01]} 25. Rc1 {[%emt 0:02:25]} Rc5 {[%emt 0:00:47]} 26. Bg3 {[%emt 0:04:46]} Rxc1 {[%emt 0:01:54]} 27. Rxc1 {[%emt 0:00:05]} Qxd5 {[%emt 0:00:32]} 28. h3 {[%emt 0:03:40]} Bd6 {[%emt 0:00:31]} 29. Bxd6+ {[%emt 0:01:08]} Qxd6 {[%emt 0:00:01]} 30. Qh5 {[%emt 0:00:40]} Qd4+ {[%emt 0:00:38]} 31. Kh1 {[%emt 0:00:17]} Qf4 {[%emt 0:00:11]} 32. Re1 {[%emt 0:01:01]} h6 {[%emt 0:00:13]} 33. Qe2 {[%emt 0:01:01]} Kg8 {[%emt 0:00:52]} 34. Rf1 {[%emt 0:00:58]} Qe4 {[%emt 0:00:07]} 35. Qf2 {[%emt 0:00:21]} Rf8 {[%emt 0:00:36]} 36. Re1 {[%emt 0:00:23]} Qd5 {[%emt 0:00:10]} 37. Qf4 {[%emt 0:00:36]} Qd7 {[%emt 0:00:42]} 38. h4 {[%emt 0:00:34]} Re8 {[%emt 0:01:18]} 39. Rxe8+ {[%emt 0:00:42]} Qxe8 {[%emt 0:00:01]} 40. Qxc7 {[%emt 0:00:37]} Qe1+ {[%emt 0:00:06]} 41. Kh2 {[%emt 0:30:07]} Qxh4+ {[%emt 0:30:01]} 42. Kg1 {[%emt 0:00:05]} Qd4+ {[%emt 0:01:34]} 43. Kh1 {[%emt 0:00:00]} Qxb2 {[%emt 0:00:00]} 44. Qc8+ {[%emt 0:00:00]} Kf7 {[%emt 0:00:00]} 45. Qxf5+ {[%emt 0:00:00]} Ke7 {[%emt 0:00:00]} 46. Qd5 {[%emt 0:00:00]} Kf6 {[%emt 0:00:00]} 47. Qd6+ {[%emt 0:00:00]} Kf5 {[%emt 0:00:00]} 48. Qd5+ {[%emt 0:00:00]} Kf4 {[%emt 0:00:00]} 49. Qf3+ {[%emt 0:00:00]} Ke5 {[%emt 0:00:00]} 50. Qd3 {[%emt 0:00:00]} Qd4 {[%emt 0:00:00]} 51. Qb5+ {[%emt 0:00:00]} Kd6 {[%emt 0:00:00]} 52. Qe8 {[%emt 0:00:00]} Qa1+ {[%emt 0:00:00]} 0-1